bitfinex-derivatives/quotes_BNBF0:USTF0_20250908
["timestamp","ask_amount","ask_price","bid_price","bid_amount"]
[1757320648189,0.39,875.44,873.51,1.5059524]
[1757320648394,0.5,875.77,873.55,1.5059524]
[1757320648692,0.39,875.62,873.5,1.5059524]
[1757320648889,0.39,875.62,873.49,1.5059524]
[1757320649289,0.39,875.62,873.46,1.5059524]
[1757320650292,0.39,875.62,873.43,1.5059524]
[1757320650996,0.39,875.62,873.44,1.5059524]
[1757320651192,0.39,875.62,873.47,1.5059524]
[1757320651396,0.39,875.62,873.44,1.5059524]
[1757320651691,0.5,875.92,873.48,1.5059524]
[1757320651896,0.39,875.71,873.61,1.5059524]
[1757320652296,0.39,875.71,873.3,1.5059524]
[1757320652496,0.39,875.71,873.26,1.5059524]
[1757320652694,0.312,875.57,873.22,1.5059524]
[1757320653296,0.312,875.57,873.21,1.5059524]
[1757320653496,0.312,875.57,873.2,1.5059524]
[1757320653696,0.312,875.57,873.16,1.5059524]
[1757320654097,0.312,875.57,873.17,1.5059524]
[1757320654299,0.312,875.57,873.14,1.5059524]
[1757320654999,0.312,875.57,873.44,0.9987087]
[1757320655298,1.5154084,877.98,871.94,2.5461728]
[1757320655299,0.312,875.76,873.74,0.9987087]
[1757320655598,0.312,875.61,873.2,0.9987087]
[1757320656094,0.312,875.61,873.23,0.9987087]
[1757320656399,0.312,875.61,873.22,0.9987087]
[1757320656595,0.312,875.61,873.27,0.9987087]
[1757320657296,0.312,875.61,873.25,0.9987087]
[1757320657698,0.312,875.61,873.24,0.9987087]
[1757320657894,0.312,875.61,873.31,0.9987087]
[1757320658197,0.312,875.61,873.29,0.9987087]
[1757320658700,0.312,875.61,873.27,0.9987087]
[1757320660597,0.312,875.61,871.83,2.5461728]
[1757320660598,0.312,875.61,873.28,0.9987087]
[1757320661202,0.312,875.61,873.27,0.9987087]
[1757320662204,0.312,875.61,873.25,0.9987087]
[1757320662500,0.312,875.61,873.61,0.9987087]
[1757320662703,0.312,875.61,873.57,0.9987087]
[1757320663400,0.312,875.61,873.59,0.9987087]
[1757320663803,0.312,875.61,873.58,0.9987087]
[1757320664099,0.339,875.61,873.58,0.9987087]
[1757320664604,0.364,875.61,873.58,0.9987087]
[1757320665503,0.364,875.61,873.59,0.9987087]
[1757320665704,0.337,875.61,873.59,0.9987087]
[1757320666505,0.337,875.61,873.61,0.9987087]
[1757320667004,0.337,875.61,873.62,0.9987087]
[1757320667205,0.337,875.61,873.61,0.9987087]
[1757320667403,0.337,875.61,873.29,1.5059524]
[1757320667404,0.337,875.61,873.62,0.9987087]
[1757320667602,0.293,875.67,873.61,0.9987087]
[1757320667801,0.5,875.68,873.62,0.9987087]
[1757320668206,0.266,875.67,873.62,0.9987087]
[1757320668505,0.266,875.67,873.65,0.9987087]
[1757320669208,0.266,875.67,873.66,0.9987087]
[1757320669405,0.266,875.67,873.69,0.9987087]
[1757320669703,0.266,875.67,873.79,0.9987087]
[1757320670403,0.266,875.67,873.81,0.9987087]
[1757320671404,0.266,875.67,873.84,0.9987087]
[1757320671907,0.266,875.67,873.85,0.9987087]
[1757320672304,0.337,875.61,873.79,0.9987087]
[1757320672503,0.337,875.61,874.01,0.9987087]
[1757320672706,0.337,875.61,873.88,0.9987087]
[1757320672908,0.5,875.61,873.79,0.9987087]
[1757320673108,0.5,875.61,873.76,0.9987087]
[1757320673504,0.5,875.61,873.79,0.9987087]
[1757320674306,0.5,875.61,873.8,0.9987087]
[1757320674507,0.5,875.61,872.58,2.5461728]
[1757320674508,0.5,875.61,873.83,0.9987087]
[1757320675409,0.5,875.61,873.87,0.9987087]
[1757320675610,0.5,875.61,873.86,0.9987087]
[1757320676311,0.5,875.61,873.91,0.9987087]
[1757320677313,0.5,875.61,873.96,0.9987087]
[1757320678313,0.5,875.61,873.97,0.9987087]
[1757320678516,0.5,875.61,874.02,0.9987087]
[1757320679511,0.5,875.61,874.08,0.9987087]
[1757320680213,0.5,875.61,874.1,0.9987087]
[1757320681116,0.5,875.61,874.11,0.9987087]
[1757320681417,0.5,875.61,874.16,0.9987087]
[1757320682218,0.5,875.61,874.23,0.9987087]
[1757320682421,0.5,875.61,874.15,0.9987087]
[1757320682919,0.5,875.61,874.09,0.9987087]
[1757320683117,0.5,875.61,874.1,0.9987087]
[1757320683323,0.5,875.61,874.14,0.9987087]
[1757320683821,0.5,875.61,874.11,0.9987087]
[1757320684223,0.5,875.61,874.12,0.9987087]
[1757320684424,0.5,875.61,874.18,0.9987087]
[1757320685318,0.5,875.61,874.22,0.9987087]
[1757320685520,0.5,875.61,874.23,0.9987087]
[1757320685722,0.5,875.61,874.2,0.9987087]
[1757320685922,0.5,875.61,874.15,0.9987087]
[1757320686120,0.5,875.61,874.12,0.9987087]
[1757320686419,0.5,875.61,874.19,0.9987087]
[1757320686624,0.5,875.61,874.2,0.9987087]
[1757320686825,0.5,875.61,874.19,0.9987087]
[1757320687324,0.5,875.61,874.25,0.9987087]
[1757320687525,0.5,875.61,874.23,0.9987087]
[1757320687725,0.19916044,875.28,874.19,0.9987087]
[1757320687926,0.19916044,875.28,874.18,0.9987087]
[1757320688126,0.19916044,875.28,874.19,0.9987087]
[1757320688327,0.19916044,875.28,874.26,0.9987087]
[1757320688627,0.19916044,875.28,874.28,0.9987087]
[1757320688922,0.19916044,875.28,874.27,0.9987087]
[1757320689328,0.19916044,875.28,872.74,0.19916044]
[1757320689329,0.19916044,875.28,874.35,0.9987087]
[1757320689930,0.19916044,875.28,874.38,0.9987087]
[1757320690130,0.19916044,875.28,874.43,0.9987087]
[1757320690324,0.19916044,875.28,874.48,0.9987087]
[1757320691028,0.19916044,875.28,874.51,0.9987087]
[1757320691231,0.19916044,875.28,874.55,0.9987087]
[1757320692232,0.19916044,875.28,874.59,0.9987087]
[1757320692433,0.19916044,875.28,874.33,0.9987087]
[1757320692934,0.19916044,875.28,874.35,0.9987087]
[1757320693136,0.19916044,875.28,874.39,0.9987087]
[1757320693336,0.19916044,875.28,874.44,0.9987087]
[1757320693733,0.19916044,875.28,874.42,0.9987087]
[1757320694032,0.19916044,875.28,874.4,0.9987087]
[1757320694232,0.19916044,875.28,874.41,0.9987087]
[1757320694534,0.19916044,875.28,874.46,0.9987087]
[1757320694937,0.19916044,875.28,874.45,0.9987087]
[1757320695237,0.19916044,875.28,874.46,0.9987087]
[1757320695438,0.19916044,875.28,874.51,0.9987087]
[1757320695933,0.19916044,875.28,874.52,0.9987087]
[1757320696138,0.19916044,875.28,874.68,0.9987087]
[1757320696333,0.19916044,875.28,874.74,0.9987087]
[1757320696538,0.19916044,875.28,874.75,0.9987087]
[1757320696738,0.19916044,875.28,874.53,1.5059524]
[1757320696739,0.19916044,875.28,874.74,0.9987087]
[1757320696938,0.19916044,875.28,874.75,0.9987087]
[1757320698342,0.19916044,875.28,874.8,0.9987087]
[1757320698542,0.19916044,875.28,874.83,0.9987087]
[1757320698943,0.19916044,875.28,874.82,0.9987087]
[1757320699443,0.19916044,875.28,874.83,0.9987087]
[1757320701146,0.19916044,875.28,874.86,0.77074837]
[1757320702242,0.19916044,875.28,874.82,0.9987087]
[1757320702442,0.19916044,875.28,874.83,0.9987087]
[1757320702646,0.19916044,875.28,874.8,0.9987087]
[1757320702946,0.19916044,875.28,874.72,0.9987087]
[1757320703147,0.19916044,875.28,874.68,0.9987087]
[1757320703347,0.19916044,875.28,874.61,0.9987087]
[1757320703649,0.19916044,875.28,874.62,0.9987087]
[1757320703843,0.19916044,875.28,874.77,0.9987087]
[1757320704043,0.19916044,875.28,874.76,0.9987087]
[1757320704343,0.19916044,875.28,874.77,0.9987087]
[1757320704743,0.19916044,875.28,874.78,0.9987087]
[1757320705447,0.19916044,875.28,873.39,2.5461728]
[1757320705448,0.19916044,875.28,874.79,0.9987087]
[1757320705748,0.19916044,875.28,874.88,0.9987087]
[1757320706249,0.19916044,875.28,874.89,0.9987087]
[1757320707351,0.19916044,875.28,874.88,0.9987087]
[1757320708551,0.19916044,875.28,874.89,0.9987087]
[1757320709251,0.19916044,875.28,874.88,0.9987087]
[1757320710353,0.19916044,875.28,874.9,0.9987087]
[1757320710852,0.19916044,875.28,874.93,0.9987087]
[1757320711053,0.19916044,875.28,874.94,0.9987087]
[1757320711955,0.19916044,875.28,874.95,0.9987087]
[1757320712451,0.19916044,875.28,874.94,0.9987087]
[1757320714257,0.19916044,875.28,874.96,0.9987087]
[1757320717956,0.19916044,875.28,874.92,0.9987087]
[1757320718652,0.19916044,875.28,874.93,0.9987087]
[1757320718857,0.19916044,875.28,874.92,0.9987087]
[1757320720657,0.19916044,875.28,874.93,0.9987087]
[1757320722355,0.19916044,875.28,874.94,0.9987087]
[1757320726859,0.19916044,875.28,874.95,0.9987087]
[1757320727254,0.19916044,875.28,874.96,0.9987087]
[1757320729661,0.19916044,875.28,874.9,0.9987087]
[1757320729861,0.19916044,875.28,874.84,0.9987087]
[1757320730162,0.19916044,875.28,874.85,0.9987087]
[1757320730357,0.19916044,875.28,874.86,0.9987087]
[1757320730958,0.19916044,875.28,874.78,0.9987087]
[1757320731158,0.19916044,875.28,874.8,0.9987087]
[1757320732160,0.19916044,875.28,874.81,0.9987087]
[1757320732566,0.19916044,875.28,874.78,0.9987087]
[1757320732766,0.19916044,875.28,874.74,0.9987087]
[1757320732966,0.19916044,875.28,874.7,1.0299374]
[1757320733164,0.19916044,875.28,874.44,1.5059524]
[1757320733366,0.5,875.2,874.31,1.5059524]
[1757320734166,0.5,875.2,874.27,1.5059524]
[1757320734563,0.5,875.2,874.26,1.5059524]
[1757320735066,0.287,875.2,874.27,1.5059524]
[1757320735264,0.287,875.2,874.26,1.5059524]
[1757320735467,0.287,875.2,874.24,1.5059524]
[1757320735662,0.287,875.2,874.27,1.5059524]
[1757320736469,0.287,875.2,874.34,1.5059524]
[1757320737070,0.287,875.2,874.37,1.5059524]
[1757320737268,0.287,875.2,874.36,1.5059524]
[1757320737465,0.287,875.2,874.37,1.5059524]
[1757320738069,0.287,875.2,874.35,1.5059524]
[1757320738366,0.287,875.2,874.34,1.5059524]
[1757320739271,0.287,875.2,874.33,1.5059524]
[1757320740673,0.287,875.2,874.42,1.5059524]
[1757320741070,0.287,875.2,874.43,1.5059524]
[1757320741274,0.287,875.2,874.45,1.5059524]
[1757320742170,0.287,875.2,874.47,1.5059524]
[1757320742374,0.287,875.2,874.39,1.5059524]
[1757320742575,0.19916044,875.28,874.39,1.5059524]
[1757320743275,0.19916044,875.28,874.44,1.5059524]
[1757320744078,0.19916044,875.28,874.45,1.5059524]
[1757320745677,0.19916044,875.28,874.43,1.5059524]
[1757320747981,0.19916044,875.28,874.42,1.5059524]
[1757320748181,0.19916044,875.28,874.44,1.5059524]
[1757320749082,0.19916044,875.28,874.43,1.5059524]
[1757320749280,0.19916044,875.28,874.55,1.5059524]
[1757320749480,0.19916044,875.28,874.57,1.5059524]
[1757320749678,0.19916044,875.28,874.52,1.5059524]
[1757320750985,0.19916044,875.28,874.53,1.5059524]
[1757320752386,0.19916044,875.28,874.62,1.5059524]
[1757320753087,0.19916044,875.28,874.63,1.5059524]
[1757320754185,0.19916044,875.28,874.62,1.5059524]
[1757320754385,0.19916044,875.28,874.67,1.5059524]
[1757320754583,0.19916044,875.28,874.65,1.5059524]
[1757320755685,0.19916044,875.28,874.67,1.5059524]
[1757320755984,0.19916044,875.28,874.66,1.5059524]
[1757320759389,0.19916044,875.28,874.71,1.5059524]
[1757320760687,0.19916044,875.28,874.75,1.5059524]
[1757320760886,0.19916044,875.28,873.93,2.5461728]
[1757320760887,0.19916044,875.28,874.76,1.5059524]
[1757320762488,0.19916044,875.28,874.83,1.5059524]
[1757320762793,0.19916044,875.28,874.86,1.5059524]
[1757320763092,0.19916044,875.28,874.95,1.0272961]
[1757320769394,0.19916044,875.28,874.94,1.0272961]
[1757320769595,0.19916044,875.28,874.95,1.0272961]
[1757320771193,0.19916044,875.28,874.94,1.0272961]
[1757320771496,0.19916044,875.28,874.95,1.0272961]
[1757320773498,0.19916044,875.28,874.94,1.0272961]
[1757320773793,0.19916044,875.28,874.95,1.0272961]
[1757320776097,0.19916044,875.28,874.94,1.0272961]
[1757320776293,0.19916044,875.28,874.95,1.0272961]
[1757320776497,0.19916044,875.28,874.94,1.0272961]
[1757320776797,0.19916044,875.28,874.95,1.0272961]
[1757320776994,0.19916044,875.28,874.94,1.0272961]
[1757320777294,0.19916044,875.28,874.95,1.0272961]
[1757320777497,0.19916044,875.28,874.94,1.0272961]
[1757320777798,0.19916044,875.28,874.95,1.0272961]
[1757320777997,0.19916044,875.28,874.94,1.0272961]
[1757320778194,0.19916044,875.28,874.95,1.0272961]
[1757320778994,0.19916044,875.28,874.94,1.0272961]
[1757320779194,0.19916044,875.28,874.95,1.0272961]
[1757320779999,0.19916044,875.28,874.94,1.0272961]
[1757320780200,0.19916044,875.28,874.95,1.0272961]
[1757320780597,0.19916044,875.28,874.94,1.0272961]
[1757320780800,0.19916044,875.28,874.95,1.0272961]
[1757320780997,0.19916044,875.28,874.94,1.0272961]
[1757320781300,0.19916044,875.28,874.95,1.0272961]
[1757320781500,0.19916044,875.28,874.94,1.0272961]
[1757320782198,0.19916044,875.28,874.95,1.0272961]
[1757320782399,0.19916044,875.28,874.04,2.5461728]
[1757320782400,0.19916044,875.28,874.9,1.0272961]
[1757320782802,0.19916044,875.28,874.91,1.0272961]
[1757320782999,0.19916044,875.28,874.9,1.0272961]
[1757320783204,0.19916044,875.28,874.94,1.0272961]
[1757320783403,0.19916044,875.28,874.8,1.5059524]
[1757320784301,0.19916044,875.28,874.82,1.5059524]
[1757320784498,0.19916044,875.28,874.79,1.5059524]
[1757320784705,0.19916044,875.28,874.78,1.5059524]
[1757320784901,0.19916044,875.28,874.79,1.5059524]
[1757320785099,0.19916044,875.28,874.8,1.5059524]
[1757320786398,0.19916044,875.28,874.81,1.5059524]
[1757320787305,0.19916044,875.28,874.82,1.5059524]
[1757320788108,0.19916044,875.28,874.81,1.5059524]
[1757320788403,0.19916044,875.28,874.66,1.5059524]
[1757320788602,0.19916044,875.28,874.72,1.5059524]
[1757320788801,0.19916044,875.28,874.68,1.5059524]
[1757320789003,0.19916044,875.28,874.67,1.5059524]
[1757320789707,0.19916044,875.28,874.66,1.5059524]
[1757320792108,0.19916044,875.28,874.65,1.5059524]
[1757320792308,0.19916044,875.28,874.79,1.5059524]
[1757320793005,0.19916044,875.28,874.68,1.5059524]
[1757320793408,0.19916044,875.28,874.74,1.5059524]
[1757320794111,0.19916044,875.28,874.76,1.5059524]
[1757320794314,0.19916044,875.28,874.75,1.5059524]
[1757320794512,0.19916044,875.28,874.76,1.5059524]
[1757320795109,0.19916044,875.28,874.77,1.5059524]
[1757320796012,0.19916044,875.28,874.78,1.5059524]
[1757320796309,0.19916044,875.28,874.79,1.5059524]
[1757320796513,0.5,875.56,874.78,1.5059524]
[1757320796713,0.5,876.35,875.49,1.5059524]
[1757320797010,0.266,876.13,875.46,1.5059524]
[1757320797311,0.266,876.32,875.42,1.5059524]
[1757320797510,0.266,876.32,875.37,1.5059524]
[1757320797708,0.266,876.32,875.35,1.5059524]
[1757320797912,0.266,876.32,875.27,1.5059524]
[1757320798308,0.19891966,876.06,875.22,1.5059524]
[1757320798612,0.19891966,876.06,875.23,1.5059524]
[1757320799112,0.19891966,876.06,875.19,1.5059524]
[1757320800013,0.19891966,876.06,875.09,1.5059524]
[1757320801108,0.19891966,876.06,875.03,1.5059524]
[1757320801415,0.19891966,876.06,875.0,1.5059524]
[1757320802117,0.19891966,876.06,875.01,1.5059524]
[1757320802314,0.19891966,876.06,874.99,1.5059524]
[1757320802515,0.19891966,876.06,874.96,1.5059524]
[1757320802715,0.19891966,876.06,874.97,1.5059524]
[1757320802911,0.19891966,876.06,874.99,1.5059524]
[1757320803212,0.19891966,876.06,875.01,1.5059524]
[1757320803516,0.19891966,876.06,875.0,1.5059524]
[1757320803714,0.19891966,876.06,875.12,1.5059524]
[1757320803911,0.19891966,876.06,874.15,2.5461728]
[1757320803912,0.19891966,876.06,875.36,1.5059524]
[1757320804118,0.19891966,876.06,875.35,1.5059524]
[1757320804713,0.19891966,876.06,875.3,1.5059524]
[1757320805214,0.19891966,876.06,875.27,1.5059524]
[1757320805412,0.19891966,876.06,875.34,1.5059524]
[1757320805614,0.19891966,876.06,875.35,1.5059524]
[1757320805914,0.19891966,876.06,875.36,1.5059524]
[1757320806117,0.19891966,876.06,875.3,1.5059524]
[1757320806416,0.19891966,876.06,875.32,1.5059524]
[1757320806718,0.19891966,876.06,875.31,1.5059524]
[1757320807214,0.19891966,876.06,875.28,1.5059524]
[1757320807615,0.19891966,876.06,875.27,1.5059524]
[1757320808216,0.19891966,876.06,875.24,1.5059524]
[1757320808520,0.19891966,876.06,875.28,1.5059524]
[1757320809119,0.19891966,876.06,875.25,1.5059524]
[1757320809318,0.19891966,876.06,875.23,1.5059524]
[1757320809624,0.19891966,876.06,875.4,1.5059524]
[1757320809824,0.19891966,876.06,875.42,1.5059524]
[1757320810026,0.19891966,876.06,875.47,1.5059524]
[1757320810225,0.19891966,876.06,875.43,1.5059524]
[1757320811023,0.19891966,876.06,875.34,1.5059524]
[1757320811226,0.19891966,876.06,875.18,1.5059524]
[1757320812230,0.19891966,876.06,874.22,2.5461728]
[1757320812231,0.19891966,876.06,875.15,1.5059524]
[1757320812525,0.19891966,876.06,875.24,1.5059524]
[1757320812726,0.19891966,876.06,875.19,1.5059524]
[1757320812926,0.19891966,876.06,875.15,1.5059524]
[1757320813127,0.19891966,876.06,875.04,1.5059524]
[1757320813330,0.19891966,876.06,875.02,1.5059524]
[1757320813533,0.19891966,876.06,875.31,1.017865]
[1757320814133,0.19891966,876.06,875.21,1.017865]
[1757320814330,0.19891966,876.06,875.17,1.017865]
[1757320814530,0.19891966,876.06,875.16,1.017865]
[1757320814734,0.19891966,876.06,875.15,1.017865]
[1757320815336,0.19891966,876.06,875.14,1.017865]
[1757320816438,0.19891966,876.06,875.13,1.017865]
[1757320817132,0.19891966,876.06,875.19,1.017865]
[1757320817434,0.19891966,876.06,872.5,5.0923457]
[1757320817435,0.19891966,876.06,875.17,1.017865]
[1757320818438,0.19891966,876.06,875.19,1.017865]
[1757320818637,0.19891966,876.06,875.21,1.017865]
[1757320819039,0.19891966,876.06,875.17,1.017865]
[1757320819536,0.32,876.03,874.98,1.017865]
[1757320819735,0.266,876.03,875.0,1.017865]
[1757320819932,0.266,876.03,874.98,1.017865]
[1757320820132,0.266,876.03,874.99,1.017865]
[1757320820837,0.266,876.03,874.97,1.017865]
[1757320821037,0.266,876.03,874.95,1.017865]
[1757320821336,0.266,876.03,874.96,1.017865]
[1757320821838,0.19891966,876.06,874.96,1.017865]
[1757320822138,0.19891966,876.06,874.97,1.017865]
[1757320822436,0.19891966,876.06,875.07,1.017865]
[1757320822834,0.19891966,876.06,875.03,1.017865]
[1757320823136,0.266,875.94,875.02,1.017865]
[1757320823336,0.266,875.91,874.94,1.017865]
[1757320823543,0.471,875.65,874.88,1.017865]
[1757320823740,0.471,875.65,874.85,1.017865]
[1757320824136,0.471,875.65,874.86,1.017865]
[1757320824342,0.471,875.65,874.85,1.017865]
[1757320824539,0.471,875.65,874.88,1.017865]
[1757320825041,0.5,875.88,874.88,1.017865]
[1757320825240,0.5,875.88,874.89,1.017865]
[1757320827143,0.5,875.88,874.9,1.017865]
[1757320827443,0.266,875.81,874.89,1.017865]
[1757320827944,0.5,875.88,874.9,1.017865]
[1757320828143,0.266,875.85,874.91,1.017865]
[1757320828438,0.266,875.85,874.9,1.017865]
[1757320828945,0.5,875.92,874.87,1.017865]
[1757320829144,0.5,875.92,874.86,1.017865]
[1757320829345,0.5,875.92,874.85,1.017865]
[1757320829946,0.378,875.82,874.86,1.017865]
[1757320830241,0.352,875.82,874.85,1.017865]
[1757320830742,0.378,875.82,874.85,1.017865]
[1757320830947,0.378,875.82,874.84,1.017865]
[1757320831142,0.378,875.82,874.85,1.017865]
[1757320831944,0.378,875.82,874.86,1.017865]
[1757320832247,0.378,875.82,874.87,1.017865]
[1757320832444,0.378,875.82,874.58,1.017865]
[1757320832744,0.378,875.82,874.57,1.017865]
[1757320833148,0.378,875.82,874.59,1.017865]
[1757320834250,0.378,875.82,874.6,1.017865]
[1757320834947,0.379,875.94,874.71,1.017865]
[1757320835449,0.264,875.82,874.71,1.017865]
[1757320835650,0.265,875.94,874.7,1.017865]
[1757320835856,0.265,875.94,874.71,1.017865]
[1757320836351,0.265,875.94,874.73,1.017865]
[1757320836552,0.5,875.97,874.73,1.017865]
[1757320837048,0.5,875.97,874.75,1.017865]
[1757320837247,0.5,875.97,873.63,2.5461728]
[1757320837248,0.5,875.97,874.77,1.017865]
[1757320837549,0.5,875.97,874.78,1.017865]
[1757320837749,0.5,875.97,874.83,1.017865]
[1757320837953,0.5,875.97,874.87,1.017865]
[1757320838153,0.5,875.97,874.88,1.017865]
[1757320839050,0.5,875.97,874.89,1.017865]
[1757320840355,0.441,875.94,874.9,1.017865]
[1757320840749,0.441,875.94,873.93,2.5461728]
[1757320840750,0.441,875.94,874.92,1.017865]
[1757320841252,0.441,875.94,874.93,1.017865]
[1757320841450,0.441,875.94,874.89,1.017865]
[1757320841652,0.19891966,876.06,874.95,1.017865]
[1757320841653,0.401,875.97,874.95,1.017865]
[1757320841850,0.5,876.05,874.95,1.017865]
[1757320842251,0.5,876.05,874.96,1.017865]
[1757320842451,0.5,876.05,875.09,1.017865]
[1757320842854,0.5,876.05,875.1,1.017865]
[1757320843056,0.5,876.05,875.13,1.017865]
[1757320843255,0.5,876.05,875.14,1.017865]
[1757320843454,0.5,876.05,875.13,1.017865]
[1757320843752,0.5,876.05,875.14,1.017865]
[1757320843952,0.5,876.05,875.15,1.017865]
[1757320844154,0.5,876.05,875.16,1.017865]
[1757320844454,0.5,876.05,875.15,1.017865]
[1757320845153,0.5,876.05,875.16,1.017865]
[1757320846152,0.5,876.05,875.17,1.017865]
[1757320846354,0.5,876.05,875.18,1.017865]
[1757320847154,0.5,876.05,875.19,1.017865]
[1757320848157,0.5,876.05,875.21,1.017865]
[1757320848857,0.5,876.05,875.22,1.017865]
[1757320849051,0.19891966,876.06,875.22,1.017865]
[1757320849357,0.19891966,876.06,875.23,1.017865]
[1757320849658,0.19891966,876.06,875.24,1.017865]
[1757320850358,0.19891966,876.06,875.26,1.017865]
[1757320851257,0.19891966,876.06,875.27,1.017865]
[1757320852154,0.19891966,876.06,875.28,1.017865]
[1757320852458,0.414,875.94,875.15,1.017865]
[1757320852660,0.414,875.94,875.14,1.017865]
[1757320852961,0.441,875.94,875.14,1.017865]
[1757320853161,0.414,875.94,875.15,1.017865]
[1757320853459,0.495,875.89,874.91,1.017865]
[1757320853657,0.5,875.89,874.9,1.017865]
[1757320853855,0.498,875.89,874.9,1.017865]
[1757320854061,0.498,875.89,874.92,1.017865]
[1757320854356,0.498,875.89,874.96,1.017865]
[1757320855262,0.498,875.89,874.97,1.017865]
[1757320855961,0.498,875.89,875.05,1.017865]
[1757320856160,0.498,875.89,875.07,1.017865]
[1757320856662,0.314,875.94,875.07,1.017865]
[1757320856962,0.287,875.94,875.07,1.017865]
[1757320857461,0.287,875.94,875.06,1.017865]
[1757320857859,0.425,875.94,875.06,1.017865]
[1757320858160,0.371,875.94,875.06,1.017865]
[1757320858559,0.428,875.94,875.06,1.017865]
[1757320858762,0.468,875.78,875.06,1.017865]
[1757320858966,0.442,875.73,875.06,1.017865]
[1757320859168,0.442,875.73,875.05,1.017865]
[1757320859568,0.442,875.73,875.06,1.017865]
[1757320859767,0.442,875.73,875.07,1.017865]
[1757320859968,0.5,875.73,875.01,1.017865]
[1757320860166,0.415,875.66,875.02,1.017865]
[1757320860569,0.5,875.79,875.02,1.017865]
[1757320860771,0.287,875.79,875.02,1.017865]
[1757320861165,0.399,875.79,875.01,1.017865]
[1757320861365,0.288,875.77,875.01,1.017865]
[1757320861866,0.316,875.77,875.03,1.017865]
[1757320862067,0.288,875.77,875.03,1.017865]
[1757320862373,0.5,875.95,875.07,1.017865]
[1757320862568,0.345,875.79,875.06,1.017865]
[1757320862972,0.288,875.79,875.06,1.017865]
[1757320863476,0.288,875.79,875.08,1.017865]
[1757320863673,0.288,875.79,875.07,1.017865]
[1757320863870,0.288,875.79,874.88,1.5059524]
[1757320863871,0.499,875.75,875.08,1.017865]
[1757320864171,0.499,875.75,875.07,1.017865]
[1757320865671,0.499,875.75,875.06,1.017865]
[1757320865870,0.43,875.79,875.07,1.017865]
[1757320866068,0.402,875.79,875.1,1.017865]
[1757320867169,0.402,875.79,874.21,2.5461728]
[1757320867170,0.402,875.79,875.11,1.017865]
[1757320867368,0.402,875.79,875.12,1.017865]
[1757320867572,0.402,875.79,875.11,1.017865]
[1757320868273,0.402,875.79,875.13,1.017865]
[1757320868678,0.402,875.79,875.12,1.017865]
[1757320868976,0.402,875.79,875.11,1.017865]
[1757320869179,0.402,875.79,875.12,1.017865]
[1757320869678,0.402,875.79,875.13,1.017865]
[1757320870081,0.402,875.79,875.16,1.017865]
[1757320871278,0.402,875.79,875.19,1.017865]
[1757320871481,0.402,875.79,875.16,1.017865]
[1757320871679,0.402,875.79,875.13,1.017865]
[1757320872182,0.402,875.79,875.16,1.017865]
[1757320872381,0.402,875.79,875.13,1.017865]
[1757320873180,0.402,875.79,875.16,1.017865]
[1757320873878,0.402,875.79,875.17,1.017865]
[1757320874083,0.402,875.79,875.18,1.017865]
[1757320875283,0.402,875.79,875.19,1.017865]
[1757320875487,0.402,875.79,875.18,1.017865]
[1757320876185,0.402,875.79,875.19,1.017865]
[1757320877086,0.402,875.79,875.2,1.017865]
[1757320878285,0.402,875.79,875.21,1.017865]
[1757320879292,0.402,875.79,875.22,1.017865]
[1757320881789,0.402,875.79,875.09,1.5059524]
[1757320881989,0.402,875.79,875.06,1.5059524]
[1757320882388,0.402,875.79,874.99,1.5059524]
[1757320882888,0.402,875.79,874.98,1.5059524]
[1757320885196,0.402,875.79,875.01,1.5059524]
[1757320885591,0.402,875.79,875.03,1.5059524]
[1757320887090,0.402,875.79,875.01,1.5059524]
[1757320887291,0.402,875.79,875.02,1.5059524]
[1757320889096,0.402,875.79,875.03,1.5059524]
[1757320892497,0.402,875.79,875.1,1.5059524]
[1757320892699,0.402,875.79,875.1,0.0734106]
[1757320892900,0.402,875.79,874.39,2.5461728]
[1757320893197,0.402,875.79,874.43,2.5461728]
[1757320894201,0.402,875.79,874.41,2.5461728]